bitfinex/quotes_ETHUSD_20260226
["timestamp","ask_amount","ask_price","bid_price","bid_amount"]
[1772090843578,0.45019233,2066.0,2065.6,1.72]
[1772090843791,0.45019233,2065.9,2065.6,1.7211]
[1772090843996,0.001,2065.7,2065.6,1.7211]
[1772090846403,0.001,2065.7,2065.6,0.0011]
[1772090848300,0.001,2065.7,2065.6,0.49368313]
[1772090852592,0.001,2065.7,2065.6,0.0011]
[1772090866700,0.001,2065.7,2065.6,0.4937949]
[1772090868225,0.001,2065.7,2065.6,0.0011]
[1772090869243,0.001,2065.7,2065.6,0.4937949]
[1772090869831,0.45019233,2066.0,2065.7,0.4926949]
[1772090872203,1.66026872,2066.0,2065.7,0.4926949]
[1772090872506,0.45019233,2066.0,2065.7,0.4926949]
[1772090872706,0.45119233,2066.1,2065.7,0.4926949]
[1772090873735,1.66121049,2066.1,2065.7,0.4926949]
[1772090879750,0.45019233,2066.0,2065.7,0.4926949]
[1772090880042,0.45019233,2066.0,2065.8,0.0011]
[1772090880233,0.001,2065.9,2065.8,0.0011]
[1772090881953,0.001,2065.9,2065.8,0.48717031]
[1772090882120,0.001,2066.1,2065.8,0.48717031]
[1772090882319,0.001,2066.1,2066.0,0.48607031]
[1772090885947,0.001,2066.3,2066.0,0.48607031]
[1772090891447,0.001,2066.3,2066.0,1.69613532]
[1772090891636,0.001,2066.3,2066.1,0.48607031]
[1772090892837,0.001,2066.3,2066.1,0.48717031]
[1772090894052,0.001,2066.3,2066.1,1.69716655]
[1772090894236,0.001,2066.3,2066.1,0.48717031]
[1772090894437,0.001,2066.3,2066.1,1.69716235]
[1772090894633,0.001,2066.3,2066.1,0.48717031]
[1772090895331,0.45119233,2066.3,2065.9,0.0011]
[1772090895864,0.44909233,2066.2,2065.9,0.0011]
[1772090897941,0.44909233,2066.1,2065.9,0.0011]
[1772090899159,0.44909233,2066.1,2065.8,0.0011]
[1772090901365,1.65916009,2066.0,2065.8,0.0011]
[1772090902270,1.609,2066.3,2065.9,0.48607031]
[1772090902443,1.12,2066.3,2065.9,0.48607031]
[1772090902772,1.56909233,2066.3,2065.9,0.48607031]
[1772090903148,2.77902365,2066.3,2065.9,0.48607031]
[1772090903671,1.21089354,2066.3,2066.1,0.48607031]
[1772090903978,1.65998587,2066.3,2065.9,0.48607031]
[1772090904670,1.21089354,2066.3,2065.9,0.48607031]
[1772090904856,5.13445869,2066.7,2066.2,0.48607031]
[1772090904857,0.49066339,2066.7,2066.2,0.48607031]
[1772090907757,0.49894773,2066.6,2066.2,0.48607031]
[1772090909989,1.70868109,2066.6,2066.2,0.48607031]
[1772090910156,0.49894773,2066.5,2066.2,0.48607031]
[1772090910768,1.70868109,2066.6,2066.2,0.48607031]
[1772090911505,0.49894773,2066.5,2066.0,0.0011]
[1772090911663,0.49894773,2066.3,2066.0,0.0011]
[1772090912065,1.70889836,2066.2,2066.0,0.0011]
[1772090912260,1.611,2066.5,2066.0,0.46130128]
[1772090912261,1.20982204,2066.5,2066.0,0.46130128]
[1772090912495,1.70876977,2066.5,2066.0,0.46130128]
[1772090913075,0.49894773,2066.4,2066.0,0.46130128]
[1772090914191,1.70880856,2066.4,2066.0,0.46130128]
[1772090914385,1.20986083,2066.4,2066.0,0.46130128]
[1772090914601,0.49358238,2066.3,2066.0,0.46130128]
[1772090917414,0.49358238,2066.3,2066.2,0.0011]
[1772090917713,1.70347445,2066.3,2066.2,0.0011]
[1772090920616,0.49358238,2066.3,2066.2,0.0011]
[1772090920818,1.20986563,2066.4,2066.2,0.0011]
[1772090921121,1.70344801,2066.4,2066.2,0.0011]
[1772090922930,0.49358238,2066.4,2066.2,0.0011]
[1772090923724,1.70342245,2066.4,2066.2,0.0011]
[1772090930748,4.83889794,2066.6,2066.2,0.48182801]
[1772090930749,0.49358238,2066.6,2066.2,0.48182801]
[1772090930901,0.49358238,2066.8,2066.4,0.48072801]
[1772090931732,1.70316698,2066.9,2066.4,0.48072801]
[1772090932917,1.70316698,2066.9,2066.5,0.48072801]
[1772090936441,0.49439895,2066.8,2066.3,0.47260383]
[1772090940845,1.20963472,2066.8,2066.3,0.47260383]
[1772090941036,0.49439895,2066.7,2066.3,0.47260383]
[1772090941345,0.49439895,2066.6,2066.2,0.0011]
[1772090942144,0.49439895,2066.6,2066.4,0.0011]
[1772090942441,0.49539895,2066.6,2066.4,0.0011]
[1772090942942,1.21077034,2066.6,2066.4,0.0011]
[1772090943244,0.49439895,2066.5,2066.4,0.0011]
[1772090944351,0.49439895,2066.5,2066.2,0.0011]
[1772090944352,0.49439895,2066.4,2066.2,0.0011]
[1772090944543,0.49439895,2066.4,2066.1,0.0011]
[1772090947642,1.20989207,2066.3,2066.1,0.0011]
[1772090947848,1.70429102,2066.3,2066.1,0.0011]
[1772090956459,1.70529102,2066.3,2066.1,0.0011]
[1772090956958,0.49439895,2066.1,2065.8,0.0011]
[1772090957152,0.49439895,2065.9,2065.8,0.0011]
[1772090957359,0.79001866,2066.0,2065.8,0.0011]
[1772090957653,0.49439895,2066.0,2065.8,0.0011]
[1772090960165,1.70447079,2066.0,2065.8,0.0011]
[1772090968170,0.47347649,2065.9,2065.8,0.0011]
[1772090968560,0.47347649,2065.9,2065.7,0.0011]
[1772090968869,0.001,2065.8,2065.7,0.0011]
[1772090969246,0.001,2065.8,2065.7,0.47369848]
[1772090969566,1.68345338,2066.2,2065.8,0.47259848]
[1772090970665,0.47347649,2066.1,2065.7,0.0011]
[1772090970864,0.47347649,2066.1,2065.7,0.47369848]
[1772090971075,0.47347649,2066.1,2065.7,0.0011]
[1772090971882,0.47347649,2066.1,2065.7,0.47369848]
[1772090972572,1.21006776,2066.0,2065.7,0.47369848]
[1772090976107,0.001,2066.3,2066.0,0.4626531]
[1772090976412,1.68265209,2066.3,2065.7,1.67398682]
[1772090976569,1.68265209,2066.3,2065.8,0.4626531]
[1772090976909,0.47175825,2066.2,2065.8,0.4626531]
[1772090978992,1.68172034,2066.2,2065.8,0.4626531]
[1772090979666,0.47175825,2066.2,2065.8,0.4626531]
[1772090980375,0.47175825,2066.2,2065.9,0.0011]
[1772090980584,0.47175825,2066.2,2065.9,0.4637531]
[1772090980769,0.001,2066.0,2065.9,0.4637531]
[1772090983197,0.001,2066.3,2066.0,0.4626531]
[1772090984471,1.21089217,2066.3,2066.0,0.4626531]
[1772090985002,0.001,2066.3,2066.0,0.4626531]
[1772090991812,0.001,2066.3,2066.1,0.4626531]
[1772090992117,1.20977515,2066.5,2066.1,0.4626531]
[1772090992485,1.20977515,2066.5,2066.2,0.4637531]
[1772090993893,0.47175825,2066.5,2066.2,0.4637531]
[1772090996018,1.68158264,2066.5,2066.2,0.4637531]
[1772090998617,0.46731543,2066.4,2066.2,0.0011]
[1772091000210,0.46731543,2066.4,2066.0,0.0011]
[1772091000419,0.46731543,2066.4,2065.9,0.0011]
[1772091000420,0.46731543,2066.2,2065.9,0.0011]
[1772091000724,0.46731543,2066.1,2065.9,0.0011]
[1772091001240,0.46731543,2066.1,2065.7,0.0011]
[1772091002890,0.46731543,2065.9,2065.7,0.0011]
[1772091004902,1.21018095,2065.9,2065.7,0.0011]
[1772091005106,0.46731543,2065.8,2065.7,0.0011]
[1772091005315,0.46731543,2065.7,2065.5,0.0011]
[1772091005628,0.46731543,2065.7,2065.4,0.0011]
[1772091005804,1.21018095,2065.9,2065.3,0.0011]
[1772091005805,0.46731543,2065.5,2065.3,0.0011]
[1772091005995,0.46731543,2065.5,2065.1,0.0011]
[1772091007024,0.46731543,2065.3,2065.1,0.0011]
[1772091007826,3.32165318,2065.6,2065.2,0.47093049]
[1772091007998,3.32165318,2065.6,2065.2,0.46983049]
[1772091010509,1.644,2065.6,2065.4,0.46983049]
[1772091010905,0.001,2066.1,2065.3,0.44345108]
[1772091010906,3.32343552,2066.0,2065.6,0.46983049]
[1772091011634,0.46731543,2065.9,2065.6,0.46983049]
[1772091012135,0.46731543,2065.9,2065.4,0.0011]
[1772091012136,0.46731543,2065.9,2065.5,0.46983049]
[1772091012338,0.46731543,2065.9,2065.5,0.47093049]
[1772091012647,1.21018491,2065.8,2065.5,0.47093049]
[1772091015438,1.67748329,2065.9,2065.5,0.47093049]
[1772091015643,1.67748329,2065.9,2065.6,0.0011]
[1772091016609,0.46731543,2065.6,2065.1,0.0011]
[1772091017302,0.46731543,2065.4,2065.1,0.0011]
[1772091017706,0.46731543,2065.4,2065.2,0.0011]
[1772091020757,1.67773869,2065.4,2065.2,0.0011]
[1772091021346,1.21039124,2065.5,2065.2,0.47093049]
[1772091021547,0.46831543,2065.7,2065.2,0.47093049]
[1772091021832,0.001,2065.7,2065.5,0.46983049]
[1772091023141,1.67838135,2066.1,2065.7,0.46983049]
[1772091024712,0.46731543,2066.0,2065.6,0.46983049]
[1772091026006,0.49649571,2066.1,2065.6,0.46983049]
[1772091028047,1.21006776,2066.0,2065.6,0.46983049]
[1772091028349,0.49549571,2065.9,2065.4,0.45719383]
[1772091028747,0.49549571,2065.9,2065.5,0.45719383]
[1772091029856,0.001,2065.8,2065.5,0.45719383]
[1772091030151,0.001,2066.1,2065.9,0.45719383]
[1772091030834,0.49649571,2066.1,2065.8,0.45719383]
[1772091031148,0.001,2066.1,2065.8,0.45719383]
[1772091031522,0.001,2066.1,2065.9,0.45719383]
[1772091032323,0.49649571,2066.1,2065.7,0.45719383]
[1772091032523,0.001,2066.1,2065.7,0.45719383]
[1772091035243,0.001,2066.1,2065.9,0.4686363]
[1772091036156,6.49223512,2066.5,2066.1,0.4686363]
[1772091036157,1.70643251,2066.5,2066.1,0.4686363]
[1772091036722,0.49664269,2066.4,2066.1,0.4686363]
[1772091036927,0.49664269,2066.4,2065.9,0.4686363]
[1772091037856,1.70653476,2066.3,2065.9,0.4686363]
[1772091038058,1.20989207,2066.3,2065.9,0.4686363]
[1772091038227,0.49664269,2066.2,2065.8,0.29579787]
[1772091038428,0.49664269,2066.2,2065.8,0.76443417]
[1772091038931,0.49664269,2066.2,2065.9,0.4686363]
[1772091039464,1.2107297,2066.6,2066.1,0.4686363]
[1772091039758,1.2107297,2066.6,2066.3,0.4686363]
[1772091042338,1.70737239,2066.6,2066.3,0.4686363]
[1772091045342,1.2107297,2066.6,2066.2,0.76443417]
[1772091045641,0.49664269,2066.5,2066.2,0.76443417]
[1772091047461,0.001,2066.6,2066.2,0.76443417]
[1772091047665,1.70740185,2066.6,2066.2,0.76443417]
[1772091051447,1.70740185,2066.6,2066.3,0.4686363]
[1772091051654,0.49664269,2066.5,2066.2,0.29579787]
[1772091051853,0.49764269,2066.6,2066.4,0.29579787]
[1772091055773,0.49664269,2066.9,2066.5,0.4686363]
[1772091055967,0.49664269,2066.9,2066.6,0.29579787]
[1772091056481,0.49664269,2066.9,2066.6,0.75230318]
[1772091056667,0.47436173,2067.0,2066.6,0.75230318]
[1772091056860,0.47436173,2067.0,2066.6,0.45650531]
[1772091057261,0.47436173,2067.0,2066.3,0.0011]
[1772091057466,0.47436173,2067.0,2066.3,0.45760531]
[1772091057872,0.47436173,2066.8,2066.3,0.45760531]
[1772091058176,0.47436173,2066.6,2066.3,0.0011]
[1772091059085,0.47436173,2066.6,2066.3,0.45760531]
[1772091060157,1.68413576,2066.6,2066.3,0.45760531]
[1772091060788,0.47436173,2066.6,2066.3,0.45760531]
[1772091061084,1.20969821,2066.7,2066.3,0.45760531]
[1772091061282,1.68405994,2066.7,2066.3,0.45760531]
[1772091061489,0.47436173,2066.6,2066.3,0.0011]
[1772091062282,1.6841029,2066.6,2066.3,0.0011]
[1772091063258,1.20974117,2066.6,2066.3,0.0011]
[1772091063471,1.6841029,2066.6,2066.3,0.0011]
[1772091063679,0.47436173,2066.6,2066.3,0.75340318]
[1772091063873,3.34400503,2066.8,2066.4,0.45650531]
[1772091064096,0.47436173,2066.8,2066.5,0.75230318]
[1772091064302,0.47436173,2066.9,2066.6,0.45650531]
[1772091068484,1.68390937,2066.9,2066.6,0.45650531]
[1772091078299,0.47436173,2066.9,2066.6,0.45650531]
[1772091078505,1.6838302,2067.1,2066.7,0.75230318]
[1772091078702,1.6838302,2067.1,2066.7,0.45650531]
[1772091079299,0.47436173,2067.0,2066.7,0.45650531]
[1772091079975,0.47436173,2067.0,2066.5,0.75340318]
[1772091080602,1.20954085,2066.9,2066.5,0.75340318]
[1772091080806,1.68390258,2066.9,2066.5,0.75340318]
[1772091080971,1.20954085,2066.9,2066.5,0.75340318]
[1772091081170,0.47436173,2066.7,2066.3,0.0011]
[1772091081909,0.47436173,2066.3,2066.0,0.0011]
[1772091082075,1.669,2066.3,2065.5,0.45650531]
[1772091082274,1.501,2066.2,2065.6,0.45650531]
[1772091082607,1.21006776,2066.0,2065.6,0.45650531]
[1772091084182,1.68442949,2066.0,2065.6,0.45650531]
[1772091085707,0.47436173,2066.0,2065.7,0.45650531]
[1772091086214,1.68443799,2066.0,2065.7,0.45650531]
[1772091086811,0.47372853,2066.0,2065.5,1.21035187]
[1772091087115,0.47372853,2066.0,2065.6,0.45173946]
[1772091087610,0.47372853,2066.2,2065.7,0.44344364]
[1772091087806,0.47372853,2066.6,2066.0,0.45173946]
[1772091090591,1.68350351,2066.5,2066.0,0.45173946]
[1772091091190,0.47372853,2066.4,2066.2,0.001]
[1772091093423,0.47372853,2066.5,2066.2,0.45273946]
[1772091096088,1.68354744,2066.5,2066.2,0.45273946]
[1772091097393,0.48692931,2066.4,2066.0,0.001]
[1772091097902,0.48692931,2066.3,2066.0,0.001]
[1772091098216,0.48692931,2066.1,2066.0,0.001]
[1772091100498,1.6969385,2066.1,2066.0,0.001]
[1772091101324,0.48692931,2066.0,2065.7,0.001]
[1772091101530,0.48692931,2066.0,2065.7,0.47008557]
[1772091102625,1.69700623,2066.0,2065.7,0.47008557]
[1772091103821,0.48692931,2066.0,2065.7,0.47008557]
[1772091104019,1.69699777,2066.0,2065.7,0.47008557]
[1772091105228,0.48792931,2066.2,2065.8,0.46908557]
[1772091107728,1.21000919,2066.1,2065.8,0.46908557]
[1772091108028,1.6969385,2066.1,2065.8,0.46908557]
[1772091112834,0.001,2066.2,2065.9,0.46908557]
[1772091113138,0.48892931,2066.7,2066.2,0.46908557]
[1772091113322,0.48892931,2066.7,2066.4,0.46908557]
[1772091114635,1.69859095,2066.7,2066.4,0.46908557]
[1772091117039,0.46246071,2066.6,2066.0,0.45836323]
[1772091117726,1.67223569,2066.5,2066.0,0.45836323]
[1772091118120,0.46246071,2066.4,2066.0,0.45836323]
[1772091118808,1.67221503,2066.6,2066.1,0.45726323]
[1772091119009,0.46246071,2066.5,2066.1,0.45726323]
[1772091120647,1.67225269,2066.5,2066.1,0.45726323]
[1772091120942,1.20974086,2066.6,2066.2,0.45726323]
[1772091121177,0.002,2066.7,2066.4,0.45726323]
[1772091121949,0.002,2066.7,2066.6,0.45726323]
[1772091122508,0.46446071,2066.9,2066.6,0.45726323]
[1772091122850,0.002,2066.9,2066.6,0.45726323]
[1772091126040,0.46446071,2066.9,2066.2,0.45726323]
[1772091126240,0.46446071,2066.9,2066.3,0.45726323]
[1772091127554,1.67404602,2066.9,2066.4,0.45726323]
[1772091127922,1.67404602,2066.9,2066.8,0.001]
[1772091131547,0.46446071,2066.9,2066.8,0.001]
[1772091132128,1.67400156,2066.9,2066.8,0.001]
[1772091134528,1.67400156,2066.9,2066.5,0.45826323]
[1772091134529,0.46246071,2066.8,2066.5,0.001]
[1772091134754,0.46246071,2066.7,2066.5,0.001]
[1772091135052,0.44344364,2066.4,2066.0,0.0011]
[1772091135223,0.46246071,2066.3,2066.0,0.0011]
[1772091135427,0.46246071,2066.1,2066.0,0.0011]
[1772091141959,1.67238388,2066.3,2066.0,0.0011]
[1772091142753,0.46246071,2066.2,2066.0,0.0011]
[1772091144270,0.46246071,2066.0,2065.7,0.001]
[1772091144959,0.46246071,2065.9,2065.7,0.001]
[1772091145264,1.21011689,2066.0,2065.7,0.001]
[1772091145443,1.6725776,2066.0,2065.7,0.001]
[1772091147065,0.4888538,2065.9,2065.7,0.001]
[1772091149868,1.69898611,2065.9,2065.7,0.001]
[1772091150169,0.4888538,2065.9,2065.7,0.001]
[1772091152978,1.69898023,2065.9,2065.7,0.001]
[1772091154560,1.66586423,2065.9,2065.7,0.001]
[1772091155870,0.4557378,2065.7,2065.4,0.0011]
[1772091156068,0.4557378,2065.6,2065.4,0.0011]
[1772091157571,1.6660866,2065.6,2065.4,0.0011]
[1772091157870,1.66596761,2065.8,2065.4,0.5005113]
[1772091158052,0.4557378,2065.7,2065.4,0.0011]
[1772091160982,0.4557378,2065.6,2065.4,0.0011]
[1772091161184,1.21030143,2065.7,2065.4,0.0011]
[1772091161488,1.66603923,2065.7,2065.4,0.0011]
[1772091163264,1.66603923,2065.7,2065.4,0.5005113]
[1772091163983,1.66603923,2065.7,2065.6,0.0011]
[1772091164180,1.66703923,2065.7,2065.6,0.0011]
[1772091164553,0.4557378,2065.6,2065.4,0.0011]
[1772091166185,1.66603992,2065.6,2065.4,0.0011]
[1772091167884,0.4557378,2065.6,2065.4,0.0011]
[1772091169094,1.66604341,2065.6,2065.4,0.0011]
[1772091170492,1.21012381,2066.0,2065.6,0.4994113]
[1772091171074,1.66586161,2066.0,2065.6,0.4994113]
[1772091171277,0.4557378,2065.9,2065.6,0.4994113]
[1772091174597,1.66591375,2065.9,2065.6,0.4994113]
[1772091175599,0.4557378,2065.8,2065.4,0.5005113]
[1772091176697,0.4557378,2065.8,2065.6,0.0011]
[1772091176889,0.001,2065.7,2065.6,0.0011]
[1772091182801,0.48265635,2065.7,2065.4,0.0011]
[1772091183002,0.48265635,2065.7,2065.2,0.0011]
[1772091183003,0.48165635,2065.4,2065.2,0.0011]
[1772091183189,0.48165635,2065.2,2065.1,0.0011]
[1772091183500,1.69219285,2065.2,2065.1,0.0011]
[1772091183806,0.48165635,2065.2,2065.1,0.0011]
[1772091186010,0.48165635,2065.4,2065.1,0.47570465]
[1772091186677,0.48265635,2065.7,2065.3,0.47460465]
[1772091188220,1.69290112,2065.7,2065.3,0.47460465]
[1772091188372,1.69290112,2065.7,2065.3,0.47570465]
[1772091188575,0.001,2065.5,2065.3,0.47570465]
[1772091190496,0.48265635,2066.1,2065.6,0.47460465]
[1772091190702,1.21101047,2066.1,2065.7,0.47460465]
[1772091191005,1.69266682,2066.1,2065.7,0.47460465]
[1772091192012,0.48165635,2066.0,2065.4,0.47460465]
[1772091192195,0.48165635,2066.0,2065.5,0.47460465]
[1772091192587,1.21101384,2066.1,2065.5,0.47460465]
[1772091193112,1.69267019,2066.1,2065.5,0.47460465]
[1772091193278,0.001,2066.1,2065.7,0.47460465]
[1772091193608,0.001,2066.1,2065.9,0.47460465]
[1772091194998,0.001,2066.1,2066.0,0.47460465]
[1772091197403,0.001,2066.1,2065.8,0.77021349]
[1772091197605,0.001,2066.1,2065.4,1.59060884]
[1772091197606,0.48265635,2066.1,2065.4,1.59060884]
[1772091197805,0.48165635,2066.0,2065.5,0.47460465]
[1772091199089,0.48165635,2065.8,2065.4,1.295]
[1772091199692,0.48165635,2065.8,2065.4,1.76960465]
[1772091200186,0.48165635,2065.8,2065.4,2.06521349]
[1772091201121,0.48265635,2065.8,2065.4,2.06521349]
[1772091201921,1.69284561,2065.8,2065.4,2.06521349]
[1772091204128,0.48165635,2065.7,2065.3,0.0011]
[1772091206019,1.66131341,2065.6,2065.3,0.0011]
[1772091206718,0.45101132,2065.5,2065.3,0.0011]
[1772091208013,1.66139668,2065.5,2065.3,0.0011]
[1772091208195,0.45101132,2065.7,2065.3,0.0011]
[1772091208398,0.45101132,2065.6,2065.3,0.0011]
[1772091210198,1.2102435,2065.7,2065.3,0.0011]
[1772091210199,0.45101132,2065.4,2065.3,0.0011]
[1772091216034,1.6779833,2065.5,2065.3,0.0011]
[1772091216209,1.67798416,2065.5,2065.3,0.0011]
[1772091219916,0.4676225,2065.4,2065.3,0.0011]
[1772091221145,0.4676225,2065.4,2065.1,0.0011]
[1772091222746,1.67807439,2065.4,2065.1,0.48115361]
[1772091223246,1.21045189,2065.4,2065.1,0.48115361]
[1772091225224,1.67807439,2065.4,2065.3,0.0011]
[1772091225426,1.21040766,2065.5,2065.3,0.0011]
[1772091225626,1.67896636,2065.6,2065.3,0.48115361]
[1772091226752,0.4676225,2065.5,2065.3,0.0011]
[1772091228555,1.21041928,2065.4,2065.3,0.0011]
[1772091229957,1.67802809,2065.5,2065.3,0.0011]
[1772091230160,0.4676225,2065.5,2065.3,0.0011]
[1772091231123,0.4676225,2065.3,2065.1,0.0011]
[1772091231332,0.4676225,2065.3,2065.0,0.0011]
[1772091232554,3.39904178,2065.4,2065.0,0.48115361]
[1772091232969,0.4676225,2065.3,2065.0,0.48115361]
[1772091233760,1.67814552,2065.3,2065.0,0.48115361]
[1772091236575,0.48789455,2065.2,2064.9,0.0011]
[1772091236881,0.48789455,2065.0,2064.9,0.0011]
[1772091237179,0.48789455,2065.0,2064.8,0.0011]
[1772091239274,1.69860693,2064.9,2064.8,0.0011]
[1772091239474,1.69860693,2064.9,2064.7,0.0011]
[1772091241455,0.48789455,2064.9,2064.7,0.0011]
[1772091241855,1.69860887,2064.9,2064.7,0.0011]
[1772091243381,0.48789455,2064.8,2064.7,0.0011]
[1772091243770,1.21071432,2064.9,2064.7,0.0011]
[1772091244486,1.69859499,2065.0,2064.7,0.0011]
[1772091245600,1.21056269,2065.2,2064.8,0.4889963]
[1772091245888,0.48789455,2065.1,2064.7,0.0011]
[1772091246450,0.48789455,2065.0,2064.7,0.0011]
[1772091247493,0.48789455,2064.7,2064.4,0.0011]
[1772091247780,2.21889455,2064.6,2064.4,0.0011]
[1772091249187,1.731,2064.6,2064.4,0.0011]
[1772091249387,2.21889455,2064.6,2064.4,0.0011]
[1772091249603,1.21094696,2064.5,2064.4,0.0011]
[1772091250253,1.21094696,2064.5,2064.2,0.4889963]
[1772091251466,2.21889455,2064.6,2064.2,0.4889963]
[1772091251676,2.21889455,2064.6,2064.3,0.4889963]
[1772091251677,1.731,2064.6,2064.3,0.4889963]
[1772091251870,1.69968088,2064.8,2064.3,0.4889963]
[1772091252089,1.735,2064.8,2064.5,0.4889963]
[1772091252475,1.734,2065.1,2064.7,0.4889963]
[1772091252683,0.48789455,2065.0,2064.3,0.4889963]
[1772091252995,2.94460896,2065.1,2064.4,0.4889963]
[1772091253379,0.48789455,2065.0,2064.4,0.4889963]
[1772091253892,1.21071238,2064.9,2064.4,0.4889963]
[1772091256798,1.69860693,2064.9,2064.4,0.4889963]
[1772091259771,1.21071238,2064.9,2064.3,1.21103407]
[1772091259973,0.48789455,2064.3,2063.5,0.00847148]
[1772091260201,0.48789455,2064.3,2063.1,3.05535113]
[1772091260202,0.48789455,2064.0,2063.4,0.4889963]
[1772091260501,1.93789455,2063.9,2063.4,0.4889963]
[1772091262107,2.66130776,2063.9,2063.4,0.4889963]
[1772091264885,1.45,2063.9,2063.5,0.4889963]
[1772091268004,2.23460266,2064.5,2063.9,0.47893736]
[1772091268312,0.49960266,2064.4,2063.9,0.47893736]
[1772091269176,1.71061646,2064.4,2063.9,0.47893736]
[1772091270987,0.49960266,2064.4,2064.0,0.47893736]
[1772091271193,1.71060943,2064.4,2064.0,0.47893736]
[1772091273013,1.21109547,2064.3,2063.8,0.47893736]
[1772091273214,0.49960266,2064.2,2063.6,0.47893736]
[1772091273384,0.49960266,2064.0,2063.6,0.47893736]
[1772091273590,0.49960266,2064.0,2063.9,0.0011]
[1772091274083,0.49960266,2064.0,2063.6,0.48003736]
[1772091274517,0.49960266,2064.0,2063.6,0.0011]
[1772091275103,0.45540348,2063.8,2063.3,0.46278463]
[1772091275298,0.45540348,2063.8,2063.3,0.45781679]
[1772091277191,1.21141638,2063.7,2063.3,0.45781679]
[1772091277593,1.66679528,2063.8,2063.3,0.45781679]
[1772091280930,0.45540348,2063.6,2063.0,0.0796796]
[1772091281090,0.45540348,2063.6,2063.0,0.54246423]
[1772091281706,1.2115338,2063.5,2063.0,0.54246423]
[1772091283424,1.66692216,2063.6,2063.1,0.46278463]
[1772091283736,0.45540348,2063.8,2063.2,0.46278463]
[1772091284024,1.742,2063.7,2063.2,0.46278463]
[1772091285618,0.001,2063.8,2063.3,0.46278463]
[1772091285818,0.001,2063.8,2063.3,1.67442936]
[1772091286116,0.001,2063.8,2063.4,0.46278463]
[1772091287929,0.001,2063.8,2063.6,0.46278463]
[1772091288901,0.45540348,2064.1,2063.5,0.46278463]
[1772091289119,1.6665567,2064.2,2063.6,0.46278463]
[1772091289325,1.21110115,2064.3,2063.6,0.46278463]
[1772091289520,1.66650463,2064.3,2063.6,0.46278463]
[1772091289716,1.21103379,2064.4,2063.6,0.46278463]
[1772091289917,3.4113612,2064.5,2063.9,0.46278463]
[1772091290231,3.4113612,2064.5,2064.0,0.46278463]
[1772091290530,0.45540348,2064.4,2063.8,0.46278463]
[1772091291635,2.95786351,2064.7,2064.0,0.46278463]
[1772091292037,3.41326699,2064.7,2064.1,0.46278463]
[1772091293140,0.45540348,2064.6,2063.7,1.67416063]
[1772091293306,0.45540348,2064.6,2063.8,0.46278463]
[1772091293503,1.66723758,2064.7,2064.1,0.46278463]
[1772091293899,0.45540348,2064.6,2064.1,0.46278463]
[1772091294527,1.66630017,2064.6,2064.1,0.46278463]
[1772091298226,0.48633671,2064.5,2063.9,0.48766002]
[1772091298636,0.48733671,2064.4,2063.9,0.48766002]
[1772091299438,1.69836428,2064.4,2063.9,0.48766002]
[1772091301244,1.69836428,2064.4,2063.9,0.78373695]
[1772091301448,0.48733671,2064.4,2064.0,0.48766002]
[1772091301630,0.001,2064.4,2064.1,0.78373695]
[1772091301831,1.21185394,2064.7,2064.3,0.78373695]
[1772091302030,1.21183949,2064.7,2064.3,0.78373695]
[1772091302229,2.77674875,2065.3,2064.6,0.78373695]
[1772091302230,1.69699088,2065.0,2064.6,0.78373695]
[1772091303057,3.44690935,2065.2,2064.8,0.29607693]
[1772091303387,1.75,2065.2,2064.8,0.48766002]
[1772091303539,3.44687516,2065.2,2064.6,0.48766002]
[1772091303740,0.48633671,2065.1,2064.6,0.48766002]
[1772091305361,1.75,2065.2,2064.6,0.48766002]
[1772091305658,1.754,2065.3,2064.7,0.48766002]
[1772091305866,0.001,2065.3,2064.9,0.48766002]
[1772091306331,0.001,2065.6,2065.0,0.48766002]
[1772091306530,1.754,2065.8,2065.3,0.48766002]
[1772091307179,2.96419127,2065.8,2065.3,0.48766002]
[1772091307663,3.45052798,2065.8,2065.3,0.48766002]
[1772091308775,0.48633671,2065.7,2065.1,0.48766002]
[1772091310162,1.6966388,2065.6,2065.1,0.48766002]
[1772091310858,1.6976388,2065.6,2065.1,0.48766002]
[1772091311164,0.48633671,2065.5,2065.1,0.48766002]
[1772091311667,0.48633671,2065.5,2064.9,0.48876002]
[1772091311839,0.48633671,2065.5,2064.9,0.0011]
[1772091312159,0.48633671,2065.3,2064.9,0.0011]
[1772091314166,1.69687321,2065.2,2064.9,0.0011]
[1772091315173,0.48633671,2065.2,2064.9,0.0011]
[1772091315356,1.757,2065.3,2064.9,0.0011]
[1772091315670,1.757,2065.3,2064.9,0.48876002]
[1772091316172,3.45381621,2065.3,2064.9,0.48876002]
[1772091316750,3.45381621,2065.3,2064.9,0.0011]
[1772091320265,0.48633671,2065.2,2064.9,0.0011]
[1772091321545,1.757,2065.3,2064.9,0.0011]
[1772091321760,3.45476686,2065.4,2064.9,0.48876002]
[1772091322687,3.45476686,2065.4,2065.1,0.0011]
[1772091322890,3.45576686,2065.4,2065.1,0.0011]
[1772091323166,0.48633671,2065.3,2065.1,0.0011]
[1772091323947,1.69684069,2065.3,2065.1,0.0011]
[1772091329392,0.48682528,2065.2,2065.1,0.0011]
[1772091329588,1.69732926,2065.3,2065.1,0.0011]
[1772091329882,0.48682528,2065.3,2065.1,0.0011]
[1772091330185,2.96941949,2065.4,2065.1,0.0011]
[1772091330387,3.45624477,2065.4,2065.1,0.0011]
[1772091330887,0.48682528,2065.3,2065.1,0.0011]
[1772091331370,0.48682528,2064.9,2064.6,0.0011]
[1772091331563,0.48682528,2064.8,2064.6,0.0011]
[1772091334464,1.69760572,2064.8,2064.6,0.0011]
[1772091334656,0.48682528,2064.8,2064.6,0.0011]
[1772091334870,1.69760536,2064.8,2064.6,0.0011]
[1772091335661,1.21078008,2064.8,2064.6,0.0011]
[1772091337007,0.4531205,2064.7,2064.5,0.0011]
[1772091337480,3.42487085,2064.9,2064.5,0.47896142]
[1772091338603,0.4531205,2064.8,2064.5,0.47896142]
[1772091339472,0.4531205,2064.6,2064.5,0.0011]
[1772091339677,2.2171205,2064.6,2064.5,0.0011]
[1772091339963,0.4531205,2064.5,2064.4,0.0011]
[1772091340164,0.4531205,2064.5,2063.9,0.47786142]
[1772091340988,0.4531205,2064.5,2064.0,0.47786142]
[1772091341407,2.2181205,2064.5,2064.0,0.47786142]
[1772091341583,2.2181205,2064.5,2064.1,0.47786142]
[1772091341779,3.42907228,2064.5,2064.1,0.47786142]
[1772091342087,2.2181205,2064.5,2064.1,0.47786142]
[1772091342309,3.42908029,2064.5,2064.1,0.47786142]
[1772091345903,4.84330793,2065.1,2064.1,0.47786142]